[Event "1000 GM Labor Day Super Swiss 2024"]
[Site "San Jose"]
[Date "2024.09.03"]
[Round "8.1"]
[White "Mikaelyan, Arman"]
[Black "Quesada Perez, Yasser"]
[Result "1-0"]
[Annotator "TA"]
[ECO "C79"]
[WhiteElo "2529"]
[BlackElo "2581"]
[PlyCount "111"]
[EventDate "2024.08.30"]
[EventType "swiss"]
[EventCountry "USA"]
[SourceTitle "playchess.com"]
[Source "ChessBase"]
[SourceQuality "1"]
[TimeControl "5400+30"]

{[%evp 54,111,124,145,144,166,121,32,111,44,69,41,34,31,39,46,55,44,40,38,32,32,41,30,197,184,170,170,170,192,197,178,196,188,184,167,201,175,426,372,391,432,414,408,775,775,775,763,29974,29972,29980,29981,29981,29982,29982,29983,29983,29984,29984,29985]} 1. e4 {[%emt 0:04:00]} e5 {[%emt 0:17:08]} 2. Nf3 {[%emt 0:01:50]} Nc6 {[%emt 0:00:05]} 3. Bb5 {[%emt 0:00:20]} a6 {[%emt 0:00:18]} 4. Ba4 {[%emt 0:00:06]} d6 {[%emt 0:00:06]} 5. O-O {[%emt 0:03:59]} Nf6 {[%emt 0:00:33]} 6. Bxc6+ {[%emt 0:02:07]} bxc6 {[%emt 0:00:12]} 7. d4 {[%emt 0:00:17]} exd4 {[%emt 0:00:29]} 8. Nxd4 $1 {[%emt 0:00:13] 8.Nxd4 is better than 8.Qxd4.} c5 {[%emt 0:00:06]} 9. Nc6 {[%emt 0:00:49] C79: Ruy Lopez: Steinitz-type lines with 3...a6 4 Ba4 Nf6 5 0-0 d6.} Qd7 {[%emt 0:00:06]} 10. Na5 {[%emt 0:00:06]} Qa4 {[%emt 0:00:23]} 11. Qe1 {[%emt 0:01:54]} Be7 {[%emt 0:01:45]} 12. c4 {[%emt 0:19:08]} O-O {[%emt 0:00:56]} 13. b3 {[%emt 0:03:23]} Qe8 {[%emt 0:02:52]} 14. Bb2 {[%emt 0:02:46]} Bd8 {[%emt 0:08:35]} 15. Nc3 $146 {[%emt 0:08:38]} ({Predecessor:} 15. e5 Ng4 16. Qe4 Rb8 17. Nc6 f5 18. Qd5+ Be6 19. Qf3 Rb6 20. Nxd8 Qxd8 21. Re1 {1-0 Smirnov,A (2523)-Bartel,M (2604) Warsaw Najdorf Memorial op-A 16th 2018 (9)}) 15... c6 {[%emt 0:03:10]} 16. e5 {[%emt 0:08:04]} dxe5 {[%emt 0:06:27]} 17. Na4 {[%emt 0:00:22]} e4 {[%emt 0:01:58]} 18. Nxc5 {[%emt 0:04:38]} Bc7 {[%emt 0:01:09]} 19. b4 {[%emt 0:03:39]} Bf5 {[%emt 0:05:59]} 20. Qc3 {[%emt 0:02:36]} Qc8 {[%emt 0:20:53]} 21. h3 {[%emt 0:02:42]} Re8 {[%emt 0:03:31]} 22. Qe3 {[%emt 0:03:30]} Nh5 {[%emt 0:01:51]} 23. f4 {[%emt 0:02:10]} Qb8 {[%emt 0:01:43]} 24. Be5 {[%emt 0:03:21]} Bxe5 {[%emt 0:03:16]} 25. fxe5 {[%emt 0:00:05]} Qxe5 {[%emt 0:00:04]} 26. g4 {[%emt 0:05:31]} Ng3 {[%emt 0:00:05]} 27. gxf5 {[%emt 0:00:35]} Nxf5 {[%emt 0:03:07]} 28. Qf4 $1 {[%emt 0:03:51]} Qd4+ {[%emt 0:01:51]} 29. Kh1 {[%emt 0:00:21]} g6 {[%emt 0:01:25]} 30. Rac1 {[%emt 0:03:03]} (30. Nxc6 $6 Qxc4 31. Rfd1 Qc3 $11) (30. Rae1 $16) 30... Qb2 {[%emt 0:01:03] [#]} ({Black should play} 30... Qf6 $1 $14) 31. Nxc6 {[%emt 0:03:01]} (31. Nxe4 $2 Rxe4 (31... Qxb4 $2 32. Nf6+ Kg7 33. Nxe8+ Rxe8 34. Nb3 $18) 32. Rf2 Qxb4 $19 (32... Rxf4 $2 33. Rxb2 Re8 34. Rc3 $19)) (31. Rg1 $1 $16) 31... e3 $14 {[%emt 0:00:46]} 32. Nd3 {[%emt 0:01:00]} Qf6 {[%emt 0:02:45]} 33. Nce5 {[%emt 0:00:52]} Qe6 {[%emt 0:00:40]} 34. Nf3 {[%emt 0:02:47]} (34. Qg4 $5) 34... Rad8 {[%emt 0:01:15]} 35. Nc5 {[%emt 0:01:09]} Qc6 {[%emt 0:00:05]} 36. Kh2 {[%emt 0:01:20]} e2 {[%emt 0:01:11]} 37. Rfe1 {[%emt 0:01:20]} Re3 {[%emt 0:00:22]} 38. Ne5 {[%emt 0:01:08]} Qf6 $2 {[%emt 0:06:22]} (38... Qa8 $1 $11 39. Ncd7 Kg7) 39. Ne4 $18 {[%emt 0:00:57]} Qh4 {[%emt 0:02:11]} 40. Qxh4 {[%emt 0:01:20]} Nxh4 {[%emt 0:00:02]} 41. Ng4 {[%emt 0:01:17]} Nf3+ {[%emt 0:00:05] [#]} 42. Kg2 $1 {[%emt 0:00:12]} (42. Kg3 $2 Nxe1+ 43. Nxe3 Nd3 $19) 42... Nxe1+ {[%emt 0:01:47]} (42... Rxe4 $2 43. Kxf3 Re6 44. Rxe2 $18) 43. Rxe1 {[%emt 0:00:04]} Rd1 {[%emt 0:00:24]} (43... Rxe4 $2 44. Nf6+ Kh8 45. Nxe4 $18) 44. Nxe3 {[%emt 0:01:01]} Rxe1 {[%emt 0:00:03]} 45. Kf2 {[%emt 0:00:07]} Ra1 $2 {[%emt 0:00:40]} (45... Rb1 46. Kxe2 f5 47. Nf6+ Kg7) 46. Kxe2 $18 {[%emt 0:00:08]} Rxa2+ {[%emt 0:00:04]} 47. Kd3 {[%emt 0:02:13]} f5 {[%emt 0:01:08]} 48. Nc3 {[%emt 0:00:00]} Rb2 {[%emt 0:00:03]} (48... Ra1 $142 49. c5 Kf7) 49. Ned5 $18 {[%emt 0:00:08]} f4 {[%emt 0:00:10]} 50. c5 {[%emt 0:00:43]} (50. Nxf4 Rxb4 51. Nfd5 Rb8 $18) 50... Kf7 {[%emt 0:03:29]} 51. c6 {[%emt 0:00:05]} (51. Nxf4 Rxb4 52. Ncd5 Rb8 $18) 51... Ke6 {[%emt 0:00:04]} 52. c7 {[%emt 0:00:29]} ({Worse is} 52. Nxf4+ Kd6 $15) 52... Kd7 {[%emt 0:00:01]} 53. Na4 {[%emt 0:00:14]} ({Weaker is} 53. Nxf4 Kxc7 54. Nfe2 Kd7 $17 (54... Rxb4 $2 {perishes.} 55. Nd5+ Kd6 56. Nxb4 $18)) 53... Rxb4 {[%emt 0:00:34]} 54. Nc5+ {[%emt 0:00:43]} Kc8 {[%emt 0:00:04]} 55. Nxa6 {[%emt 0:00:41]} Rb3+ {[%emt 0:00:37]} 56. Kc4 {[%emt 0:00:33]} 1-0

[Event "1000 GM Labor Day Super Swiss 2024"]
[Site "San Jose"]
[Date "2024.09.03"]
[Round "8.2"]
[White "Cordova, Emilio"]
[Black "Chen, Ryo"]
[Result "0-1"]
[Annotator "TA"]
[ECO "A49"]
[WhiteElo "2519"]
[BlackElo "2408"]
[PlyCount "92"]
[EventDate "2024.08.30"]
[EventType "swiss"]
[EventCountry "USA"]
[SourceTitle "playchess.com"]
[Source "ChessBase"]
[SourceQuality "1"]
[TimeControl "5400+30"]

{[%evp 21,92,14,26,0,16,0,0,0,23,2,13,6,5,0,0,0,0,7,25,11,11,11,30,31,31,16,22,24,29,19,11,7,12,0,0,0,0,0,22,13,18,18,27,-10,-8,-5,-10,-8,0,1,0,0,75,0,0,0,0,-327,-348,-321,-318,-362,-351,-343,-340,-338,-331,-298,-169,-170,-175,-193,-84]} 1. Nf3 {[%emt 0:23:05]} Nf6 {[%emt 0:00:06]} 2. g3 {[%emt 0:00:28]} g6 {[%emt 0:00:09]} 3. Bg2 {[%emt 0:00:16]} Bg7 {[%emt 0:00:06]} 4. d4 {[%emt 0:00:26]} O-O {[%emt 0:00:20]} 5. O-O {[%emt 0:00:26]} c6 {[%emt 0:01:29]} 6. a4 {[%emt 0:05:46]} a5 {[%emt 0:01:19] A49: 1 d4 Nf6 2 Nf3 g6 3 g3: Anti-King's Indian systems.} 7. b3 {[%emt 0:01:05]} d5 {[%emt 0:01:35]} 8. Bb2 {[%emt 0:01:49]} Bf5 {[%emt 0:01:53]} 9. e3 {[%emt 0:03:39]} Nbd7 {[%emt 0:12:48]} 10. c4 $146 {[%emt 0:10:15]} ({Predecessor:} 10. Qe2 Qb6 11. c4 Qxb3 12. Rc1 Bd3 13. Qd2 Ne4 {0-1 Bagrationi,A (2454)-Strybuk,A (2408) Titled Tuesday intern op 04th Jul Late blitz 2023 (2)}) 10... Qb6 {[%emt 0:10:13]} 11. Na3 {[%emt 0:03:15]} Be4 {[%emt 0:04:56]} 12. Rc1 {[%emt 0:01:06]} e6 {[%emt 0:03:46]} 13. Bc3 {[%emt 0:03:27]} Rfe8 {[%emt 0:16:52]} 14. Nb1 {[%emt 0:01:19]} Qa6 {[%emt 0:08:31]} 15. Nbd2 {[%emt 0:08:11]} Bd3 {[%emt 0:01:24]} 16. Re1 {[%emt 0:01:54]} Rad8 {[%emt 0:09:03]} 17. Bb2 {[%emt 0:13:56]} Ne4 {[%emt 0:01:04]} 18. Nxe4 {[%emt 0:01:21]} Bxe4 {[%emt 0:01:26]} 19. Bf1 {[%emt 0:02:11]} Bxf3 {[%emt 0:00:30]} 20. Qxf3 {[%emt 0:00:06]} Qb6 {[%emt 0:00:28]} 21. Qd1 {[%emt 0:02:13]} Nb8 {[%emt 0:07:23]} 22. Bc3 {[%emt 0:05:10]} Nd7 {[%emt 0:02:26]} 23. Qc2 {[%emt 0:00:26]} Bf8 {[%emt 0:04:42]} 24. c5 {[%emt 0:00:54]} Qc7 {[%emt 0:00:29]} 25. b4 {[%emt 0:00:06]} axb4 {[%emt 0:00:47]} 26. Bxb4 {[%emt 0:00:05]} e5 {[%emt 0:00:59]} 27. a5 {[%emt 0:00:17]} Bg7 {[%emt 0:01:57]} 28. Red1 {[%emt 0:00:55]} exd4 {[%emt 0:02:17]} 29. exd4 {[%emt 0:00:06]} Nf8 {[%emt 0:00:37]} 30. Bc3 {[%emt 0:00:07]} Re7 {[%emt 0:00:54]} 31. Rb1 {[%emt 0:00:34]} Ne6 {[%emt 0:01:09]} 32. h4 {[%emt 0:01:28]} f5 {[%emt 0:00:59]} 33. a6 {[%emt 0:02:34]} bxa6 {[%emt 0:00:17]} 34. Bxa6 {[%emt 0:00:05]} Ra8 {[%emt 0:01:55]} 35. Rb7 {[%emt 0:01:15]} Qd8 $1 {[%emt 0:00:13]} 36. Rb6 {[%emt 0:00:41]} f4 {[%emt 0:01:10] [#]} (36... Qc7 $11 {remains equal.}) 37. Rxc6 {[%emt 0:01:27]} ({White should try} 37. Bb7 $1 $16) 37... fxg3 $11 {[%emt 0:00:08]} 38. fxg3 {[%emt 0:00:03]} Qe8 {[%emt 0:00:46]} 39. Rxe6 $2 {[%emt 0:06:36][%mdl 8192]} (39. Rb6 $11 {and White is okay.} Nxd4 40. Qg2 (40. Bxd4 Bxd4+ 41. Rxd4 Rxa6 $11) (40. Rxd4 Re1+ 41. Bxe1 Qxe1+ 42. Kg2 Bxd4 $16)) 39... Rxe6 $19 {[%emt 0:00:04]} 40. Bb7 {[%emt 0:00:13]} Rd8 {[%emt 0:00:41]} 41. Ba5 {[%emt 0:00:29]} Re2 {[%emt 0:00:46]} 42. Qd3 {[%emt 0:00:22]} (42. Qb3 Qe4 43. Bxd5+ Rxd5 44. Qb8+ Bf8) 42... Re3 $1 {[%emt 0:00:28]} 43. Qf1 {[%emt 0:00:29]} Rxg3+ {[%emt 0:00:36]} (43... Rd7 44. Bc6 Rxg3+ 45. Kh2 $19) 44. Kh2 {[%emt 0:00:05]} Rg4 {[%emt 0:00:56]} (44... Re3 $142 {And now ...Re2+ would win.} 45. Re1 (45. Bxd8 $2 Re2+ 46. Kg1 Qe3+ 47. Kh1 Qe4+ 48. Kg1 Bxd4+ 49. Rxd4 Qxd4+ 50. Kh1 Qe4+ 51. Kg1 Qe3+ 52. Kh1 Re1 $19) 45... Rxe1 (45... Bxd4 46. Rxe3 Bxe3 47. Bxd8 $15) 46. Qxe1 Qxe1 (46... Bxd4 47. Bxd5+ Kf8 48. Qf1+ Kg7 49. Bxd8 $11) 47. Bxe1 Bxd4) 45. Re1 $19 {[%emt 0:00:36] [#]} ({Not} 45. Bxd8 $2 Qxd8 46. Rd3 Bxd4 $19 (46... Rxh4+ $2 47. Rh3 $19)) 45... Qd7 $1 {[%emt 0:01:23]} (45... Rxh4+ 46. Kg3 Re4 47. Rxe4 dxe4 48. Bxd8 Qxd8 49. Bxe4) 46. Bxd8 {[%emt 0:00:45]} Qxd8 {[%emt 0:00:07]} 0-1

[Event "1000 GM Labor Day Super Swiss 2024"]
[Site "San Jose"]
[Date "2024.09.03"]
[Round "8.3"]
[White "Delgado Ramirez, Neuris"]
[Black "Macovei, Andrei"]
[Result "1/2-1/2"]
[Annotator "TA"]
[ECO "B10"]
[WhiteElo "2485"]
[BlackElo "2466"]
[PlyCount "102"]
[EventDate "2024.08.30"]
[EventType "swiss"]
[EventCountry "USA"]
[SourceTitle "playchess.com"]
[Source "ChessBase"]
[SourceQuality "1"]
[TimeControl "5400+30"]

{[%evp 23,102,0,0,0,0,-12,0,0,0,-22,-6,-9,-5,-39,-51,-77,-75,-65,-75,-68,-70,-87,-87,-97,-100,-132,-142,-152,-100,-106,-110,-98,-106,-113,-113,-105,-110,-111,-110,-139,-83,-122,-122,-161,-126,-118,0,-145,-134,-152,-152,-143,-24,-24,-23,-41,-24,-24,0,-57,-23,-24,-18,-20,-9,-12,0,-10,-4,-7,0,0,0,0,0,0,0,0,0,0,0]} 1. e4 {[%emt 0:19:19]} c6 {[%emt 0:00:04]} 2. d3 {[%emt 0:00:26]} d5 {[%emt 0:00:09]} 3. Nf3 {[%emt 0:00:12]} dxe4 {[%emt 0:04:09]} 4. dxe4 {[%emt 0:00:13]} Qxd1+ {[%emt 0:00:03]} 5. Kxd1 {[%emt 0:00:07]} Nf6 {[%emt 0:00:03]} 6. Nbd2 {[%emt 0:00:10] B10: Caro-Kann: 2 d3 and 2 c4.} g6 {[%emt 0:01:23]} 7. Ne5 {[%emt 0:02:04]} Be6 {[%emt 0:11:43]} 8. f3 {[%emt 0:00:21]} Nfd7 {[%emt 0:13:14]} 9. Nd3 {[%emt 0:03:28]} Bh6 {[%emt 0:00:30]} 10. c3 {[%emt 0:00:30]} c5 $146 {[%emt 0:00:30]} ({Predecessor:} 10... a5 11. a4 Na6 12. Kc2 Nac5 13. f4 Nxd3 14. Bxd3 Bxf4 15. Bc4 Bxd2 16. Bxe6 Bxc1 17. Bxd7+ Kxd7 18. Raxc1 {0-1 Ibarra Jerez,J (2563)-Prohaszka,P (2585) Titled Tuesday intern op 09th May Early blitz 2023 (7)}) 11. g3 {[%emt 0:00:30]} Nc6 {[%emt 0:00:30]} 12. Nf4 {[%emt 0:00:30]} Bxf4 {[%emt 0:00:30]} 13. gxf4 {[%emt 0:00:30]} O-O-O {[%emt 0:00:30]} 14. Kc2 {[%emt 0:00:30]} f5 {[%emt 0:00:30]} 15. Bb5 {[%emt 0:00:30]} Kc7 {[%emt 0:00:30]} 16. Re1 {[%emt 0:00:30]} Nf6 {[%emt 0:00:30]} 17. Nf1 {[%emt 0:00:30]} a6 {[%emt 0:00:30]} 18. Bxc6 {[%emt 0:00:30]} Kxc6 {[%emt 0:00:30]} 19. b3 {[%emt 0:00:30]} fxe4 {[%emt 0:00:30]} 20. fxe4 {[%emt 0:00:30]} Bh3 {[%emt 0:45:36]} 21. Nd2 {[%emt 0:17:35]} Rhf8 {[%emt 0:00:47]} 22. Re3 {[%emt 0:03:06]} Be6 {[%emt 0:01:06]} 23. Nf3 {[%emt 0:00:23]} Nxe4 $1 {[%emt 0:01:49]} 24. Rxe4 {[%emt 0:01:10]} Bf5 {[%emt 0:00:03]} 25. Ng5 {[%emt 0:00:40]} (25. Ne5+ Kc7 26. Be3 Bxe4+) 25... h6 {[%emt 0:00:30]} (25... Bxe4+ 26. Nxe4 e5 27. fxe5 $14) (25... e5 $142 {aiming for ...exf4.} 26. fxe5 Rde8 (26... Bxe4+ 27. Nxe4 Rde8 28. Bh6 $17) (26... h6 27. Kb2 $11)) 26. Kb2 $17 {[%emt 0:00:04]} hxg5 {[%emt 0:01:08]} 27. Rxe7 {[%emt 0:00:04]} g4 {[%emt 0:03:10]} 28. Re2 {[%emt 0:00:57]} Rfe8 {[%emt 0:06:38]} 29. Rg2 {[%emt 0:06:15]} Rd3 {[%emt 0:05:47]} 30. Bd2 {[%emt 0:00:10]} b5 {[%emt 0:00:22]} 31. a4 {[%emt 0:01:20] [#]} Kb6 {[%emt 0:01:15]} ({Better is} 31... Red8 $1 32. axb5+ axb5) 32. axb5 {[%emt 0:03:16]} axb5 {[%emt 0:00:01]} 33. Rag1 {[%emt 0:00:25]} Re4 {[%emt 0:00:54]} 34. Ra1 {[%emt 0:00:38]} Re8 {[%emt 0:00:52]} 35. Rag1 $1 {[%emt 0:40:07]} Rh8 {[%emt 0:00:28]} 36. Re2 {[%emt 0:00:00] [#]} Rhh3 $1 {[%emt 0:00:43]} 37. Rc1 {[%emt 0:00:00]} Rd7 {[%emt 0:00:25]} (37... b4 $17 38. Be1 Rhf3) 38. Be1 $1 $11 {[%emt 0:00:00]} Rhd3 {[%emt 0:00:25]} 39. Re5 {[%emt 0:00:00]} Rh7 {[%emt 0:01:05]} 40. Re2 $1 {[%emt 0:00:00]} Rhd7 {[%emt 0:00:29]} 41. Re5 {[%emt 0:00:00]} Rd8 {[%emt 0:00:28]} 42. Re2 {[%emt 0:00:00]} (42. b4 {seems wilder.} Ra8 43. bxc5+ Kc6 44. Ra1) 42... R3d7 {[%emt 0:00:23]} 43. b4 {[%emt 0:00:00]} cxb4 {[%emt 0:00:43]} 44. cxb4 {[%emt 0:00:00]} Rd5 {[%emt 0:00:28]} 45. Ra1 {[%emt 0:00:00]} Kb7 {[%emt 0:00:15]} 46. Ra5 {[%emt 0:00:00]} Rc8 {[%emt 0:00:46]} 47. Bf2 {[%emt 0:00:00]} Ra8 {[%emt 0:00:23]} 48. Re7+ {[%emt 0:00:00]} Bd7 {[%emt 0:00:04]} 49. Rxa8 {[%emt 0:00:00]} Kxa8 {[%emt 0:00:01]} 50. Kc3 {[%emt 0:00:00]} Rd1 {[%emt 0:00:54]} 51. Re1 {[%emt 0:00:00]} Rxe1 {[%emt 0:00:16]} 1/2-1/2

[Event "1000 GM Labor Day Super Swiss 2024"]
[Site "San Jose"]
[Date "2024.09.03"]
[Round "8.4"]
[White "Corrales Jimenez, Fidel"]
[Black "Batchuluun, Tsegmed"]
[Result "1-0"]
[Annotator "TA"]
[ECO "C02"]
[WhiteElo "2564"]
[BlackElo "2458"]
[PlyCount "83"]
[EventDate "2024.08.30"]
[EventType "swiss"]
[EventCountry "USA"]
[SourceTitle "playchess.com"]
[Source "ChessBase"]
[SourceQuality "1"]
[TimeControl "5400+30"]

{[%evp 17,82,-8,-5,-8,-15,-6,-9,-11,0,0,-11,-2,-6,0,-3,0,0,-6,-6,-23,-22,-48,-22,-70,-75,-36,-45,-46,-51,-123,-101,-110,-118,-120,-63,-66,-31,-175,-166,-175,-185,-246,-242,-265,0,0,0,0,178,160,282,275,407,326,406,322,366,361,1399,1473,29956,29960,5118,2663,29996,29997,29999]} 1. e4 {[%emt 0:15:31]} e6 {[%emt 0:00:14]} 2. d4 {[%emt 0:00:13]} d5 {[%emt 0:00:07]} 3. e5 {[%emt 0:00:56]} c5 {[%emt 0:00:10]} 4. c3 {[%emt 0:00:04]} Nc6 {[%emt 0:00:05]} 5. Nf3 {[%emt 0:00:02]} Qb6 {[%emt 0:00:07]} 6. a3 {[%emt 0:00:05]} Nh6 {[%emt 0:00:07]} 7. b4 {[%emt 0:01:12]} cxd4 {[%emt 0:00:07]} 8. cxd4 {[%emt 0:00:04]} Nf5 {[%emt 0:00:08]} 9. Be3 {[%emt 0:00:05]} f6 {[%emt 0:00:57]} 10. exf6 {[%emt 0:00:21]} (10. b5 {keeps more tension.} Nxe3 11. fxe3 Nxe5 12. dxe5 Qxe3+ 13. Qe2) 10... gxf6 {[%emt 0:00:06]} 11. Bd3 {[%emt 0:00:03] And now Bxf5 would win.} Nxe3 {[%emt 0:00:08]} 12. fxe3 {[%emt 0:00:04] The position is equal.} Bh6 {[%emt 0:01:52]} 13. Qe2 {[%emt 0:00:07]} Bd7 {[%emt 0:00:15]} 14. Nc3 {[%emt 0:03:03]} Ne7 {[%emt 0:00:08]} 15. O-O {[%emt 0:15:53][%cal Of3e5]} O-O {[%emt 0:01:11]} 16. Kh1 {[%emt 0:14:53]} Rac8 {[%emt 0:00:34]} 17. Qe1 {[%emt 0:00:12]} Ng6 {[%emt 0:25:49]} 18. Rc1 {[%emt 0:01:16]} Qd6 {[%emt 0:02:30]} 19. Rc2 {[%emt 0:01:37]} f5 {[%emt 0:03:40]} 20. h4 {[%emt 0:05:29]} (20. Qd2 $11 {was preferrable.}) 20... Kh8 $15 {[%emt 0:05:35]} 21. h5 {[%emt 0:11:57]} Ne7 {[%emt 0:00:10]} 22. Qh4 {[%emt 0:28:23]} a6 {[%emt 0:19:29]} 23. Ne5 {[%emt 0:00:00]} (23. b5 $15) 23... Nc6 $17 {[%emt 0:01:23]} (23... Bxe3 24. Qh2 f4 (24... Bxd4 $2 25. Ng6+ Nxg6 26. Qxd6 $18) 25. Ne2 $16) 24. Nxd7 {[%emt 0:00:00]} Qxd7 {[%emt 0:00:04]} 25. Na4 {[%emt 0:00:00] [#]} Bxe3 {[%emt 0:09:06]} (25... Rce8 $1 $17 26. Nc5 Qg7) 26. Nc5 $15 {[%emt 0:00:00]} Qe8 {[%emt 0:08:43]} (26... Nxd4 $2 27. Nxd7 Nxc2 28. Nxf8 Rxf8 29. Qe7 $18 (29. Bxc2 Bh6 $18)) 27. Re2 {[%emt 0:00:00]} (27. Nxb7 $15 Nxd4 (27... Bxd4 $2 28. Nd6 $18) 28. Rxc8 Qxc8 29. Nc5) 27... f4 $19 {[%emt 0:00:36]} (27... Bxd4 $2 28. Nxe6 Bf6 29. Qh3 $18 (29. Rxf5 $2 Bxh4 30. Rxf8+ Qxf8 $19)) 28. Nxb7 {[%emt 0:00:00] [#]} e5 $1 {[%emt 0:06:45]} (28... Bxd4 29. Nd6 Qd8 (29... Bf6 $2 30. Qg4 $18) 30. Qxd8 Rcxd8 31. Rxe6 $14) (28... Nxd4 $2 29. Rxe3 fxe3 30. Qxd4+ e5 31. Rxf8+ (31. Qxe3 Qxh5+ 32. Kg1 Rxf1+ 33. Bxf1 d4 $16) 31... Qxf8 32. Qxe3 $18 (32. Qxe5+ Qg7 $18)) 29. dxe5 {[%emt 0:00:00]} (29. Nd6 {keeps fighting.} Qd8 30. Qxd8 Rcxd8 31. Nb7 (31. Rxe3 $2 fxe3 32. Nf7+ Rxf7 $19)) 29... Nxe5 {[%emt 0:02:32]} 30. Nc5 {[%emt 0:00:00]} Rxc5 $2 {[%emt 0:04:46]} (30... Bxc5 $2 31. bxc5 Rxc5 32. Rxf4 Rc1+ 33. Kh2 Rxf4 34. Qxf4 Qxh5+ 35. Kg3 $18) (30... d4 $19 {[%cal Oc8c5] aiming for ...Rxc5!} 31. Bxa6 Rd8 (31... f3 32. gxf3 Rf5 33. Rh2 $17)) 31. Rxe3 $11 {[%emt 0:00:00]} fxe3 {[%emt 0:00:06]} 32. bxc5 {[%emt 0:00:31][%cal Oh5h6] Hoping for h6!} Rxf1+ $2 {[%emt 0:03:05]} (32... Nxd3 $11 33. Qd4+ Kg8 34. Qg4+ Kh8 35. Qd4+ Kg8 36. Qg4+ Kh8 37. Qd4+) 33. Bxf1 $19 {[%emt 0:00:02][%mdl 4096] Endgame. KQB-KQN} Qf8 {[%emt 0:00:34] Wards off Qf6+} (33... Nf7 $16 34. Bxa6 Kg7) 34. Bxa6 $18 {[%emt 0:01:14] h6 is the strong threat.} Nc6 {[%emt 0:03:39]} (34... Qf5 {might work better.} 35. h6 Kg8) 35. Bd3 {[%emt 0:02:42] Strongly threatening h6.} Qg7 {[%emt 0:01:41]} 36. Qf4 {[%emt 0:00:54]} Qe7 {[%emt 0:00:49]} 37. h6 {[%emt 0:02:07]} d4 $2 {[%emt 0:01:09]} (37... Kg8 38. Bb5 (38. Qg4+ Kf8 $18) 38... e2 39. Qg4+ (39. Bxc6 $2 {too greedy.} e1=Q+ 40. Kh2 Q1h4+ 41. Qxh4 Qxh4+ $19) 39... Kf7 40. Bxe2 (40. Bxc6 {is a self mate.} e1=Q+ 41. Kh2 Q7e5+ 42. g3 Qb2+) 40... Ne5 41. Qf5+ Ke8) 38. Kg1 {[%emt 0:00:00]} Kg8 {[%emt 0:00:31]} 39. Bc4+ {[%emt 0:00:00]} Kh8 {[%emt 0:00:02]} 40. Qf3 {[%emt 0:00:00]} Nd8 {[%emt 0:00:44]} 41. Qg4 {[%emt 0:00:22][%csl Gc4][%cal Rg4g8]} Nf7 {[%emt 0:00:40]} 42. Qg7# {[%emt 0:00:09] Weighted Error Value: White=0.22 (precise) /Black=0.77.  Loses game:     	---       	Black=1      Missed win:     	---       	Black=1      Mistake:       	White=4     	Black=4      Inaccurate:     	White=1     	Black=2      OK:         	White=8     	Black=10     Best:        	White=5     	Black=3      Strong:       	---       	Black=1} 1-0